bitfinex/quotes_BTCUSD_20240629
["timestamp","ask_amount","ask_price","bid_price","bid_amount"]
[1719647426094,0.09854,61176.0,61175.0,1.17343359]
[1719647426317,0.09754,61176.0,61175.0,1.14643359]
[1719647426516,0.09654,61176.0,61175.0,1.14643359]
[1719647426717,0.09654,61176.0,61175.0,1.39443359]
[1719647427358,0.09654,61176.0,61175.0,1.17443359]
[1719647427565,0.00084,61176.0,61175.0,1.39443359]
[1719647427942,0.09654,61176.0,61175.0,1.39443359]
[1719647428801,0.00084,61176.0,61175.0,1.39443359]
[1719647429154,0.09654,61176.0,61175.0,1.39443359]
[1719647431665,0.09654,61176.0,61175.0,1.40466098]
[1719647433509,0.00084,61176.0,61175.0,1.40466098]
[1719647438202,0.00084,61176.0,61175.0,1.47016498]
[1719647438781,0.00084,61176.0,61175.0,1.45616498]
[1719647439228,0.00184,61176.0,61175.0,1.45516498]
[1719647439481,0.00284,61176.0,61175.0,1.46916498]
[1719647439688,0.00184,61176.0,61175.0,1.45616498]
[1719647440258,0.00084,61176.0,61175.0,1.44216498]
[1719647440694,0.00284,61176.0,61175.0,1.46916498]
[1719647441802,0.00184,61176.0,61175.0,1.45616498]
[1719647442197,0.00184,61176.0,61175.0,1.47016498]
[1719647442198,0.00284,61176.0,61175.0,1.47016498]
[1719647443909,0.09854,61176.0,61175.0,1.47016498]
[1719647448649,0.09854,61176.0,61175.0,1.25016498]
[1719647449228,0.09854,61176.0,61175.0,1.47016498]
[1719647449832,0.09854,61176.0,61175.0,1.25016498]
[1719647454277,0.09854,61176.0,61175.0,1.47016498]
[1719647461908,0.09654,61176.0,61175.0,1.44216498]
[1719647462321,0.09754,61176.0,61175.0,1.47016498]
[1719647462747,0.11448665,61182.0,61181.0,0.15310664]
[1719647462956,0.21018665,61182.0,61181.0,0.33844562]
[1719647463156,0.21018665,61182.0,61181.0,0.34864995]
[1719647464313,0.21018665,61182.0,61181.0,0.36264995]
[1719647464506,0.21018665,61182.0,61181.0,0.37664995]
[1719647464914,0.31018665,61182.0,61181.0,0.37664995]
[1719647468887,0.21448665,61182.0,61181.0,0.37664995]
[1719647469086,0.31018665,61182.0,61181.0,0.37664995]
[1719647470109,0.21448665,61182.0,61181.0,0.57664995]
[1719647470340,0.31018665,61182.0,61181.0,0.57664995]
[1719647472024,0.31018665,61182.0,61181.0,0.37664995]
[1719647476066,0.31018665,61182.0,61181.0,0.36264995]
[1719647476419,0.31018665,61182.0,61181.0,0.37664995]
[1719647476619,0.542,61182.0,61181.0,0.37664995]
[1719647477021,0.542,61182.0,61181.0,0.36264995]
[1719647477230,0.542,61182.0,61181.0,0.37664995]
[1719647477656,0.542,61182.0,61181.0,0.36264995]
[1719647478018,0.542,61182.0,61181.0,0.37664995]
[1719647479083,0.24484893,61182.0,61181.0,0.37664995]
[1719647479282,0.34054893,61182.0,61181.0,0.37664995]
[1719647481396,0.44054893,61182.0,61181.0,0.37664995]
[1719647482908,0.44054893,61182.0,61181.0,0.35664995]
[1719647484242,0.44054893,61182.0,61181.0,0.34644562]
[1719647484852,1.98493193,61182.0,61181.0,0.34644562]
[1719647485080,2.00809615,61182.0,61181.0,0.35665436]
[1719647485277,2.00809615,61182.0,61181.0,0.34644562]
[1719647485822,1.69067315,61182.0,61181.0,0.34644562]
[1719647486292,1.69067315,61182.0,61181.0,0.35665533]
[1719647486491,1.67982415,61182.0,61181.0,0.35665533]
[1719647486699,1.52932415,61182.0,61181.0,0.35665533]
[1719647487295,1.5294947,61182.0,61181.0,0.35665533]
[1719647487944,1.52949581,61182.0,61181.0,0.35665533]
[1719647488173,1.21729681,61182.0,61181.0,0.35665533]
[1719647490328,1.21729681,61182.0,61181.0,0.35757933]
[1719647490529,1.21761529,61182.0,61181.0,0.35757933]
[1719647493840,1.21697855,61182.0,61181.0,0.35757933]
[1719647496889,1.19480093,61182.0,61181.0,0.35757933]
[1719647497090,1.21698396,61182.0,61181.0,0.35757933]
[1719647497471,1.24693503,61182.0,61181.0,0.20147269]
[1719647497673,1.24693503,61182.0,61181.0,0.20142314]
[1719647498327,1.48877574,61182.0,61181.0,0.18742314]
[1719647499259,1.48877574,61182.0,61181.0,0.17342314]
[1719647499397,1.24693503,61182.0,61181.0,0.17342314]
[1719647499596,1.24693503,61182.0,61181.0,0.20142314]
[1719647500207,1.24752064,61182.0,61181.0,0.18742314]
[1719647500697,1.24752064,61182.0,61181.0,0.20142314]
[1719647506483,1.224752,61182.0,61181.0,0.20142314]
[1719647506697,1.24707094,61182.0,61181.0,0.20142314]
[1719647509913,1.2471349,61182.0,61181.0,0.20142314]
[1719647512892,1.24705995,61182.0,61181.0,0.20142314]
[1719647515031,0.49364795,61182.0,61181.0,0.20142314]
[1719647515228,2.36366795,61182.0,61181.0,0.20142314]
[1719647516105,2.36365243,61182.0,61181.0,0.20142314]
[1719647519324,2.08382602,61182.0,61181.0,0.20142314]
[1719647519537,2.27952602,61182.0,61181.0,0.20142314]
[1719647521746,2.18382602,61182.0,61181.0,0.20142314]
[1719647521949,2.27952602,61182.0,61181.0,0.20142314]
[1719647522126,2.257241,61182.0,61181.0,0.20142314]
[1719647522328,2.27948941,61182.0,61181.0,0.20142314]
[1719647523214,2.28032941,61182.0,61181.0,0.20142314]
[1719647524380,2.52207565,61182.0,61181.0,0.20142314]
[1719647525018,2.52223799,61182.0,61181.0,0.20142314]
[1719647528314,2.52134091,61182.0,61181.0,0.20142314]
[1719647529369,3.29619791,61182.0,61181.0,0.20142314]
[1719647529578,3.31877291,61182.0,61181.0,0.20142314]
[1719647530139,3.25305191,61182.0,61181.0,0.20142314]
[1719647530351,2.58310042,61182.0,61181.0,0.20142314]
[1719647531491,2.58283823,61182.0,61181.0,0.20142314]
[1719647532487,2.45703823,61182.0,61181.0,0.20142314]
[1719647534024,2.45703823,61182.0,61181.0,0.03913371]
[1719647534659,2.69259356,61182.0,61181.0,0.03913371]
[1719647534795,2.69254948,61182.0,61181.0,0.03913371]
[1719647534995,2.69254948,61182.0,61181.0,0.028924]
[1719647535201,2.69254963,61182.0,61181.0,0.028924]
[1719647536449,2.59684963,61182.0,61181.0,0.028924]
[1719647536667,2.69254963,61182.0,61181.0,0.028924]
[1719647537953,2.69299226,61182.0,61181.0,0.028924]
[1719647538958,2.31924926,61182.0,61181.0,0.028924]
[1719647539157,2.31554926,61182.0,61181.0,0.028924]
[1719647539362,2.31554926,61182.0,61181.0,0.03814086]
[1719647540719,2.21984926,61182.0,61181.0,0.03814086]
[1719647540840,2.31554926,61182.0,61181.0,0.03814086]
[1719647541205,0.21808426,61182.0,61181.0,0.028924]
[1719647541601,1.87299326,61182.0,61181.0,0.028924]
[1719647541785,1.78524226,61182.0,61181.0,0.028924]
[1719647541986,1.86852626,61182.0,61181.0,0.028924]
[1719647542321,1.86852626,61182.0,61181.0,0.222624]
[1719647543787,1.86852626,61182.0,61181.0,0.028924]
[1719647543988,1.77282626,61182.0,61181.0,0.028924]
[1719647544171,1.86852626,61182.0,61181.0,0.028924]
[1719647544369,1.87007993,61182.0,61181.0,0.028924]
[1719647545240,1.87006307,61182.0,61181.0,0.028924]
[1719647547239,1.87006307,61182.0,61181.0,0.02887464]
[1719647548035,1.84693733,61182.0,61181.0,0.02887464]
[1719647548238,1.86930343,61182.0,61181.0,0.02887464]
[1719647550818,1.86929634,61182.0,61181.0,0.02887464]
[1719647554130,1.86927977,61182.0,61181.0,0.02887464]
[1719647554376,3.26666477,61182.0,61181.0,0.02887464]
[1719647555588,3.22692477,61182.0,61181.0,0.02887464]
[1719647556115,3.22692477,61182.0,61181.0,0.03856424]
[1719647557475,3.22692477,61182.0,61175.0,0.658324]
[1719647557476,0.31279336,61181.0,61175.0,0.000924]
[1719647557624,0.104,61177.0,61175.0,0.000924]
[1719647557832,3.147827,61176.0,61175.0,0.000924]
[1719647558620,3.147827,61176.0,61175.0,0.008924]
[1719647558844,2.8553167,61176.0,61175.0,0.019924]
[1719647559043,2.8553167,61176.0,61175.0,0.000924]
[1719647559404,2.6618047,61176.0,61175.0,0.026924]
[1719647559608,2.1943897,61176.0,61175.0,0.026924]
[1719647559853,2.2900897,61176.0,61175.0,0.026924]
[1719647560457,2.2471527,61176.0,61175.0,0.026924]
[1719647560660,2.24832604,61176.0,61175.0,0.026924]
[1719647561214,2.21662404,61176.0,61175.0,0.026924]
[1719647561416,2.17732804,61176.0,61175.0,0.026924]
[1719647562419,2.01836804,61176.0,61175.0,0.219124]
[1719647563663,1.967927,61176.0,61175.0,0.219124]
[1719647563865,1.99153191,61176.0,61175.0,0.219124]
[1719647567095,1.99151671,61176.0,61175.0,0.219124]
[1719647567701,1.92320171,61176.0,61175.0,0.219124]
[1719647568469,1.89197071,61176.0,61175.0,0.219124]
[1719647568801,1.89255687,61176.0,61175.0,0.219124]
[1719647569356,1.89255687,61176.0,61175.0,0.193124]
[1719647569583,0.22187587,61176.0,61175.0,0.215124]
[1719647569743,2.95772,61180.0,61175.0,0.22291748]
[1719647569938,0.0957,61176.0,61175.0,0.215124]
[1719647570139,1.774274,61176.0,61175.0,0.215124]
[1719647570365,2.418306,61176.0,61175.0,0.215124]
[1719647570570,1.996176,61176.0,61175.0,0.215124]
[1719647570772,1.914986,61176.0,61175.0,0.215124]
[1719647570973,1.914986,61176.0,61175.0,0.193124]
[1719647571301,1.916986,61176.0,61175.0,0.217124]
[1719647571678,1.915986,61176.0,61175.0,0.204124]
[1719647572070,2.015986,61176.0,61175.0,0.217124]
[1719647572289,1.885734,61176.0,61175.0,0.217124]
[1719647572721,1.790034,61176.0,61175.0,0.217124]
[1719647572937,1.885734,61176.0,61175.0,0.217124]
[1719647575348,1.666152,61176.0,61175.0,0.217124]
[1719647575566,1.761852,61176.0,61175.0,0.217124]
[1719647575766,1.78389166,61176.0,61175.0,0.217124]
[1719647576650,1.761852,61176.0,61175.0,0.217124]
[1719647576874,1.78410743,61176.0,61175.0,0.217124]
[1719647579829,1.80629164,61176.0,61175.0,0.217124]
[1719647580007,1.78403621,61176.0,61175.0,0.217124]
[1719647582022,0.21988421,61176.0,61175.0,0.21704834]
[1719647582150,1.88329421,61176.0,61175.0,0.21704834]
[1719647582349,2.26108549,61176.0,61175.0,0.21704834]
[1719647582552,0.21986849,61176.0,61175.0,0.21704834]
[1719647582754,0.1977,61176.0,61175.0,0.21704834]
[1719647583157,2.244001,61176.0,61175.0,0.21704834]
[1719647583355,2.166194,61176.0,61175.0,0.21704834]
[1719647583552,2.130172,61176.0,61175.0,0.21704834]
[1719647583758,1.842667,61176.0,61175.0,0.21704834]
[1719647584212,1.86483549,61176.0,61175.0,0.21704834]
[1719647585583,1.842667,61176.0,61175.0,0.21704834]
[1719647585814,1.86474122,61176.0,61175.0,0.21704834]
[1719647588021,1.53754509,61176.0,61175.0,0.21704834]
[1719647588231,1.63324509,61176.0,61175.0,0.21704834]
[1719647588376,1.56970222,61176.0,61175.0,0.21704834]
[1719647590412,1.66970222,61176.0,61175.0,0.21704834]
[1719647592142,1.66953644,61176.0,61175.0,0.21704834]
[1719647594901,1.66955179,61176.0,61175.0,0.21704834]
[1719647595107,1.647628,61176.0,61175.0,0.21704834]
[1719647595312,1.66955222,61176.0,61175.0,0.21704834]
[1719647601745,1.647628,61176.0,61175.0,0.21704834]
[1719647601977,1.66885543,61176.0,61175.0,0.21704834]
[1719647602252,1.647628,61176.0,61175.0,0.21704834]
[1719647602472,1.66883556,61176.0,61175.0,0.21704834]
[1719647602717,1.66883556,61176.0,61175.0,0.21699421]
[1719647604862,1.66883556,61176.0,61175.0,0.02479421]
[1719647604863,1.66866941,61176.0,61175.0,0.02479421]
[1719647605349,1.647628,61176.0,61175.0,0.02479421]
[1719647605608,1.66862116,61176.0,61175.0,0.02479421]
[1719647607112,0.21669316,61176.0,61175.0,0.02479421]
[1719647608230,1.62412052,61176.0,61175.0,0.02479421]
[1719647608995,1.62412052,61176.0,61175.0,0.22009421]
[1719647611513,1.603173,61176.0,61175.0,0.22009421]
[1719647611847,1.62412332,61176.0,61175.0,0.22009421]
[1719647612689,1.72062332,61176.0,61175.0,0.02479421]
[1719647612959,1.62412332,61176.0,61172.0,0.204518]
[1719647613259,2.287591,61175.0,61173.0,0.00701728]
[1719647613473,1.846228,61174.0,61173.0,0.00701728]
[1719647613698,1.846228,61174.0,61172.0,0.204518]
[1719647613915,0.1,61173.0,61172.0,0.204518]
[1719647614098,1.578092,61173.0,61172.0,0.204518]
[1719647614299,1.59904232,61173.0,61172.0,0.217518]
[1719647614502,1.578092,61173.0,61172.0,0.217518]
[1719647614644,1.59831793,61173.0,61172.0,0.204518]
[1719647615065,1.59827555,61173.0,61172.0,0.204518]
[1719647615893,1.35401555,61173.0,61172.0,0.204518]
[1719647616273,1.35601555,61173.0,61172.0,0.213518]
[1719647617733,1.33578962,61173.0,61172.0,0.006]
[1719647617934,0.12219909,61173.0,61171.0,0.1497]
[1719647618138,2.332094,61172.0,61171.0,0.1497]
[1719647618342,2.353293,61172.0,61171.0,0.1497]
[1719647618762,2.204586,61172.0,61171.0,0.1497]
[1719647619391,2.22482747,61172.0,61171.0,0.1497]
[1719647619564,1.72961347,61172.0,61171.0,0.1507]
[1719647619988,1.72961347,61172.0,61171.0,0.1497]
[1719647620389,1.73061347,61172.0,61171.0,0.1507]
[1719647620736,1.73061347,61172.0,61171.0,0.346]
[1719647620933,1.73109495,61172.0,61171.0,0.346]
[1719647621235,1.710372,61172.0,61171.0,0.35164922]
[1719647621443,1.73109495,61172.0,61171.0,0.35164922]
[1719647623394,1.50116793,61172.0,61171.0,0.35164922]
[1719647624201,1.50116207,61172.0,61171.0,0.35164922]
[1719647625461,1.60116207,61172.0,61171.0,0.35164922]
[1719647627470,1.60103463,61172.0,61171.0,0.35164922]
[1719647630700,1.6009792,61172.0,61171.0,0.35164922]
[1719647631213,1.58044498,61172.0,61171.0,0.35164922]
[1719647631386,1.60097902,61172.0,61171.0,0.35164922]
[1719647633928,1.60098769,61172.0,61171.0,0.35164922]
[1719647635523,1.60098769,61172.0,61171.0,0.35157994]
[1719647637071,1.60097003,61172.0,61171.0,0.35157994]
[1719647639818,1.50527003,61172.0,61171.0,0.35157994]
[1719647640052,1.60097003,61172.0,61171.0,0.35157994]
[1719647640430,1.60103392,61172.0,61171.0,0.35157994]
[1719647640856,1.59903392,61172.0,61171.0,0.35057994]
[1719647641214,1.60103392,61172.0,61171.0,0.35157994]
[1719647641622,1.60103392,61172.0,61171.0,0.35057994]
[1719647641623,1.60003392,61172.0,61171.0,0.35057994]
[1719647642000,1.59903392,61172.0,61171.0,0.35157994]
[1719647642205,0.61288694,61172.0,61171.0,0.35157994]
[1719647643207,0.61381785,61172.0,61171.0,0.35157994]
[1719647643559,0.61381785,61172.0,61171.0,0.36357994]
[1719647643793,0.61381785,61172.0,61171.0,0.35157994]
[1719647643963,0.61281785,61172.0,61171.0,0.35057994]
[1719647644109,0.61281785,61172.0,61171.0,0.37757994]
[1719647644608,0.61281785,61172.0,61171.0,0.36457994]
[1719647645062,0.61281785,61172.0,61171.0,0.37857994]
[1719647645830,0.591298,61172.0,61171.0,0.37857994]
[1719647646027,0.61295913,61172.0,61171.0,0.37857994]
[1719647646862,0.75699713,61172.0,61171.0,0.37857994]
[1719647649161,0.71132578,61172.0,61171.0,0.37857994]
[1719647650298,0.71132578,61172.0,61171.0,0.37850504]
[1719647651203,0.59970378,61172.0,61171.0,0.37850504]
[1719647651353,0.56368178,61172.0,61171.0,0.37850504]
[1719647651755,0.54361078,61172.0,61171.0,0.37850504]
[1719647651955,0.522193,61172.0,61171.0,0.37850504]
[1719647662638,0.522193,61172.0,61171.0,0.37668503]
[1719647664455,1.022131,61172.0,61171.0,0.37668503]
[1719647664690,1.22491,61172.0,61171.0,0.37668503]
[1719647664895,1.24613567,61172.0,61171.0,0.37637503]
[1719647665093,0.98215667,61172.0,61171.0,0.37637503]
[1719647665350,0.86978192,61172.0,61171.0,0.37637503]
[1719647665555,0.848467,61172.0,61171.0,0.37637503]
[1719647665722,0.86978898,61172.0,61171.0,0.37637503]
[1719647665876,0.85308398,61172.0,61171.0,0.37637503]
[1719647668648,0.831762,61172.0,61171.0,0.37637503]
[1719647668801,0.85302043,61172.0,61171.0,0.37637503]
[1719647671998,0.831762,61172.0,61171.0,0.37637503]
[1719647672201,0.85266143,61172.0,61171.0,0.37637503]
[1719647674868,0.21659943,61172.0,61171.0,0.37606504]
[1719647675270,0.1957,61172.0,61171.0,0.37606504]
[1719647675713,0.1957,61172.0,61171.0,0.37041582]
[1719647676113,1.287851,61172.0,61171.0,0.37613161]
[1719647676577,1.18633,61172.0,61171.0,0.37613161]
[1719647676987,1.20727841,61172.0,61171.0,0.37613161]
[1719647677532,1.77076498,61172.0,61171.0,0.03371579]
[1719647677752,1.50447841,61172.0,61171.0,0.028]
[1719647678386,1.50493803,61172.0,61171.0,0.028]
[1719647680350,1.40243803,61172.0,61171.0,0.028]
[1719647680776,1.20773803,61172.0,61171.0,0.028]
[1719647681013,1.20773803,61172.0,61171.0,0.03316532]
[1719647681612,1.18633,61172.0,61171.0,0.03316532]
[1719647681817,1.20705936,61172.0,61171.0,0.03316532]
[1719647682044,1.24918867,61172.0,61171.0,0.03316532]
[1719647682527,1.24918867,61172.0,61171.0,0.028]
[1719647683409,1.20705936,61172.0,61171.0,0.028]
[1719647684888,1.18633,61172.0,61171.0,0.028]
[1719647685009,1.20701852,61172.0,61171.0,0.02738093]
[1719647685452,1.08785252,61172.0,61171.0,0.02738093]
[1719647685684,1.18355252,61172.0,61171.0,0.02738093]
[1719647686110,1.18355252,61172.0,61171.0,0.01338093]
[1719647686335,1.18355252,61172.0,61171.0,0.02738093]
[1719647687255,1.18355252,61172.0,61171.0,0.014]
[1719647687481,1.18355252,61172.0,61171.0,0.026]
[1719647688148,1.18366564,61172.0,61171.0,0.026]
[1719647691301,1.18369308,61172.0,61171.0,0.026]
[1719647694669,1.18355699,61172.0,61171.0,0.026]
[1719647694872,1.18355699,61172.0,61171.0,0.02569]
[1719647695076,1.18355699,61172.0,61171.0,0.02538014]
[1719647695719,2.61310399,61172.0,61171.0,0.02538014]
[1719647695850,2.65404799,61172.0,61171.0,0.02538014]
[1719647696059,2.61310399,61172.0,61171.0,0.02538014]
[1719647697988,2.61304779,61172.0,61171.0,0.02538014]
[1719647698270,2.592411,61172.0,61171.0,0.02538014]
[1719647698469,2.61304779,61172.0,61171.0,0.02538014]
[1719647700593,2.51994079,61172.0,61171.0,0.02538014]
[1719647701340,2.51994079,61172.0,61170.0,0.19]
[1719647701540,2.152531,61171.0,61169.0,0.1559]
[1719647701988,1.072369,61170.0,61169.0,0.1559]
[1719647702205,1.172369,61170.0,61169.0,0.1559]
[1719647702369,1.28870579,61170.0,61169.0,0.1559]
[1719647703571,1.28936655,61170.0,61169.0,0.1559]
[1719647703715,1.28936655,61170.0,61169.0,0.1699]
[1719647703923,1.28936655,61170.0,61169.0,0.1559]
[1719647704142,1.28936655,61170.0,61169.0,0.1699]
[1719647704759,1.00356551,61170.0,61169.0,0.1699]
[1719647704965,0.77626955,61170.0,61169.0,0.18328028]
[1719647706639,0.754972,61170.0,61169.0,0.18328028]
[1719647706850,0.77632926,61170.0,61169.0,0.18328028]
[1719647709837,0.754972,61170.0,61169.0,0.18328028]
[1719647710055,0.77594883,61170.0,61169.0,0.18328028]
[1719647710464,0.77606066,61170.0,61169.0,0.18328028]
[1719647713475,0.78422066,61170.0,61169.0,0.18328028]
[1719647713988,0.78422066,61170.0,61169.0,0.18788692]
[1719647714932,0.78422066,61170.0,61169.0,0.18850106]
[1719647715142,0.78506066,61170.0,61169.0,0.18819184]
[1719647716355,0.763972,61170.0,61169.0,0.18819184]
[1719647716558,0.78517151,61170.0,61169.0,0.18819184]
[1719647719660,0.78513811,61170.0,61169.0,0.18819184]
[1719647722749,0.78458549,61170.0,61169.0,0.18819184]
[1719647723153,0.763972,61170.0,61169.0,0.18819184]
[1719647723359,0.78453274,61170.0,61169.0,0.18819184]
[1719647725070,0.78453274,61170.0,61169.0,0.18788184]
[1719647725223,0.78453274,61170.0,61169.0,0.18757198]
[1719647725841,0.763972,61170.0,61169.0,0.18757198]
[1719647726011,0.78440764,61170.0,61169.0,0.18757198]
[1719647727366,2.16158964,61170.0,61169.0,0.18757198]
[1719647727560,2.14919964,61170.0,61169.0,0.18296534]
[1719647727795,2.06911864,61170.0,61169.0,0.18296534]
[1719647727995,2.06911864,61170.0,61169.0,0.18757245]
[1719647728660,2.06911864,61170.0,61169.0,0.18296534]
[1719647729037,1.89480964,61170.0,61169.0,0.18296534]
[1719647729260,1.89513313,61170.0,61169.0,0.18296534]
[1719647730654,1.72099513,61170.0,61169.0,0.18296534]
[1719647732266,1.67031413,61170.0,61169.0,0.18296534]
[1719647732638,1.67032996,61170.0,61169.0,0.18296534]
[1719647733670,1.58614296,61170.0,61169.0,0.18296534]
[1719647735141,1.58614296,61170.0,61169.0,0.18234548]
[1719647735908,1.53793784,61170.0,61169.0,0.18234548]
[1719647736353,1.53784485,61170.0,61169.0,0.18234548]
[1719647736927,1.28068942,61170.0,61169.0,0.18234548]
[1719647737125,1.37638942,61170.0,61169.0,0.18234548]
[1719647737552,1.37638942,61170.0,61169.0,0.028924]
[1719647738933,1.35587457,61170.0,61169.0,0.028924]
[1719647739063,1.4765678,61170.0,61169.0,0.028924]
[1719647742117,1.45587457,61170.0,61169.0,0.028924]
[1719647742315,1.47663472,61170.0,61169.0,0.028924]
[1719647744290,2.57650115,61170.0,61169.0,0.028924]
[1719647744467,2.6303053,61170.0,61169.0,0.028924]
[1719647744868,2.5999833,61170.0,61169.0,0.028924]
[1719647745075,2.54617915,61170.0,61169.0,0.028614]
[1719647745474,2.54608167,61170.0,61169.0,0.028614]
[1719647747752,2.54692167,61170.0,61169.0,0.028614]
[1719647748470,2.54692167,61170.0,61169.0,0.02231444]
[1719647748673,2.54692167,61170.0,61169.0,0.02038121]
[1719647749240,2.54694692,61170.0,61169.0,0.02038121]
[1719647749867,2.50577592,61170.0,61169.0,0.02038121]
[1719647752026,2.485088,61170.0,61169.0,0.02038121]
[1719647752196,2.45356926,61170.0,61169.0,0.02038121]
[1719647752430,2.61590297,61170.0,61169.0,0.02038121]
[1719647753118,2.43416726,61170.0,61169.0,0.02038121]
[1719647754808,2.40581126,61170.0,61169.0,0.02038121]
[1719647755005,2.40581126,61170.0,61169.0,0.02007122]
[1719647755206,2.40581126,61170.0,61169.0,0.01976136]
[1719647755207,2.31453933,61170.0,61169.0,0.01976136]
[1719647755392,2.27452133,61170.0,61169.0,0.14566136]
[1719647756441,2.10454533,61170.0,61169.0,0.14566136]
[1719647757219,1.98312133,61170.0,61169.0,0.14566136]
[1719647757371,1.91904333,61170.0,61169.0,0.14566136]
[1719647758135,1.88097833,61170.0,61169.0,0.14566136]
[1719647758579,1.85856033,61170.0,61169.0,0.14566136]
[1719647759031,1.85910752,61170.0,61169.0,0.14566136]
[1719647760525,2.02630752,61170.0,61169.0,0.01976136]
[1719647760934,1.85910752,61170.0,61169.0,0.01976136]
[1719647761243,1.85911221,61170.0,61169.0,0.01976136]
[1719647762335,1.75363921,61170.0,61169.0,0.01976136]
[1719647762542,1.63696621,61170.0,61169.0,0.01976136]
[1719647762954,1.45025321,61170.0,61169.0,0.01976136]
[1719647763906,0.21773921,61170.0,61169.0,0.14566136]
[1719647764128,0.19654,61170.0,61169.0,0.14566136]
[1719647764345,0.09654,61170.0,61169.0,0.14566136]
[1719647765033,1.949866,61170.0,61169.0,0.14566136]
[1719647765272,1.849866,61170.0,61169.0,0.14504164]
[1719647765475,1.949866,61170.0,61169.0,0.14504164]
[1719647765668,1.97113434,61170.0,61169.0,0.14504164]
[1719647767031,1.85683134,61170.0,61169.0,0.14504164]
[1719647767436,1.630842,61170.0,61169.0,0.14504164]
[1719647767641,1.65210197,61170.0,61169.0,0.14504164]
[1719647770747,1.630842,61170.0,61169.0,0.14504164]
[1719647770954,1.72920799,61170.0,61169.0,0.14504164]
[1719647771157,1.65207324,61170.0,61169.0,0.14504164]
[1719647773921,1.65153015,61170.0,61169.0,0.14504164]
[1719647774793,1.63388715,61170.0,61169.0,0.14504164]
[1719647775129,1.63388715,61170.0,61169.0,0.14477779]
[1719647776035,1.53811715,61170.0,61169.0,0.14477779]
[1719647777024,1.517429,61170.0,61169.0,0.14477779]
[1719647777229,1.53814179,61170.0,61169.0,0.14477779]
[1719647779820,1.8506755,61170.0,61169.0,0.01887779]
[1719647779981,2.11698943,61170.0,61169.0,0.01887779]
[1719647780206,1.53814179,61170.0,61163.0,0.1172]
[1719647780459,0.26632717,61165.0,61160.0,0.009229]
[1719647780731,0.23959828,61164.0,61161.0,0.651729]
[1719647780933,0.23959828,61164.0,61163.0,0.1172]
[1719647780934,2.59963928,61164.0,61163.0,0.1172]
[1719647781152,2.59963928,61164.0,61163.0,0.2597]
[1719647781566,2.59963928,61164.0,61163.0,0.2737]
[1719647782000,2.59963928,61164.0,61163.0,0.2727]
[1719647782203,2.48133149,61164.0,61163.0,0.2597]
[1719647782534,2.48233149,61164.0,61163.0,0.2657]
[1719647783371,2.462041,61164.0,61163.0,0.2737]
[1719647783570,2.60093126,61164.0,61163.0,0.2737]
[1719647783992,2.48328849,61164.0,61163.0,0.2737]
[1719647784399,2.05157349,61164.0,61163.0,0.2657]
[1719647784963,2.05157349,61164.0,61163.0,0.2677]
[1719647785075,2.05157349,61164.0,61163.0,0.27939014]
[1719647785277,2.05257349,61164.0,61163.0,0.27939014]
[1719647785703,2.05257349,61164.0,61163.0,0.44172912]
[1719647785930,1.41870949,61164.0,61163.0,0.46472912]
[1719647786087,1.37903112,61164.0,61163.0,0.46472912]
[1719647786290,1.37803112,61164.0,61163.0,0.45672912]
[1719647786706,1.37772636,61164.0,61163.0,0.45672912]
[1719647787337,1.37872636,61164.0,61163.0,0.46272912]
[1719647787780,1.37772636,61164.0,61163.0,0.45672912]
[1719647788001,1.37672636,61164.0,61163.0,0.44472912]
[1719647788192,1.37772636,61164.0,61163.0,0.46472912]
[1719647788595,1.37772636,61164.0,61163.0,0.45072912]
[1719647788947,1.37772636,61164.0,61163.0,0.46472912]
[1719647789991,1.37775553,61164.0,61163.0,0.46472912]
[1719647791574,2.10135353,61164.0,61163.0,0.46472912]
[1719647791769,2.09994353,61164.0,61163.0,0.46472912]
[1719647793331,2.09993161,61164.0,61163.0,0.46472912]
[1719647793654,2.07286458,61164.0,61163.0,0.46472912]
[1719647795167,2.07286458,61164.0,61163.0,0.46464948]
[1719647795998,2.07286458,61164.0,61163.0,0.461798]
[1719647796361,2.052677,61164.0,61163.0,0.461798]
[1719647796562,2.07278642,61164.0,61163.0,0.461798]
[1719647798006,2.22888642,61164.0,61163.0,0.20533898]
[1719647798177,1.8001713,61164.0,61163.0,0.20533898]
[1719647798409,1.8001713,61164.0,61163.0,0.02]
[1719647798410,1.8958713,61164.0,61163.0,0.02]
[1719647799548,1.89647399,61164.0,61163.0,0.02]
[1719647800474,1.99647399,61164.0,61163.0,0.02]
[1719647803012,1.99619591,61164.0,61163.0,0.02]
[1719647803200,2.50026003,61164.0,61163.0,0.02]
[1719647803935,2.65636003,61164.0,61163.0,0.02]
[1719647806178,2.635926,61164.0,61163.0,0.02]
[1719647806351,2.65594825,61164.0,61163.0,0.02]
[1719647812052,2.65594825,61164.0,61163.0,0.01995543]
[1719647812855,2.6560666,61164.0,61163.0,0.01995543]
[1719647813009,2.4999666,61164.0,61163.0,0.01995543]
[1719647813212,2.4999666,61164.0,61163.0,0.02087943]
[1719647813213,2.49994645,61164.0,61163.0,0.02087943]
[1719647813434,2.50078645,61164.0,61163.0,0.02087943]
[1719647815041,2.40508645,61164.0,61163.0,0.02087943]
[1719647815275,2.50078645,61164.0,61163.0,0.02087943]
[1719647815940,2.50094049,61164.0,61163.0,0.02087943]
[1719647819114,2.480666,61164.0,61163.0,0.02087943]
[1719647819326,2.50077093,61164.0,61163.0,0.02087943]
[1719647819491,2.65357093,61164.0,61163.0,0.02087943]
[1719647820532,2.50077093,61164.0,61163.0,0.02087943]
[1719647821800,2.50080702,61164.0,61163.0,0.02087943]
[1719647822239,2.50080248,61164.0,61163.0,0.02087943]
[1719647824663,2.50078309,61164.0,61163.0,0.02087943]
[1719647824873,2.480666,61164.0,61163.0,0.02087943]
[1719647825074,2.50078669,61164.0,61163.0,0.02087943]
[1719647825612,2.50078669,61164.0,61163.0,0.02080414]
[1719647828318,2.5010957,61164.0,61163.0,0.02080414]
[1719647831489,2.5011143,61164.0,61163.0,0.02080414]
[1719647831902,2.480666,61164.0,61163.0,0.02080414]
[1719647833275,0.09694779,61164.0,61163.0,0.02080414]
[1719647834006,5.14694779,61164.0,61163.0,0.02080414]
[1719647834231,5.23145969,61164.0,61163.0,0.02080414]
[1719647834475,3.1044,61164.0,61163.0,0.02080414]
[1719647834704,3.18752777,61164.0,61163.0,0.02080414]
[1719647834887,3.1044,61164.0,61163.0,0.02080414]
[1719647835436,3.2044,61164.0,61163.0,0.02080414]
[1719647836637,3.02828032,61164.0,61163.0,0.02080414]
[1719647837751,2.75803214,61164.0,61163.0,0.02080414]
[1719647839303,0.21467533,61164.0,61163.0,0.02080414]
[1719647839971,3.57380633,61164.0,61163.0,0.02080414]